bitfinex-derivatives/quotes_SOLF0:USTF0_20260204
["timestamp","ask_amount","ask_price","bid_price","bid_amount"]
[1770173245790,0.36195855,98.005,97.936,3.85611124]
[1770173246091,0.36195855,98.027,97.936,3.85611124]
[1770173246592,9.1964,98.007,97.939,3.85611124]
[1770173246987,0.34778474,98.006,97.939,3.85611124]
[1770173247685,0.34778474,98.001,97.925,205.76]
[1770173248191,0.34397369,97.984,97.92,3.85611124]
[1770173248995,9.199,97.978,97.92,3.85611124]
[1770173249987,0.34397369,97.984,97.922,3.85611124]
[1770173250690,9.1986,97.983,97.925,3.85611124]
[1770173251283,0.34397369,97.984,97.927,3.85611124]
[1770173251487,9.1976,97.993,97.927,3.85611124]
[1770173252290,9.54985388,97.993,97.927,3.85611124]
[1770173252591,0.35225388,98.025,97.929,3.85611124]
[1770173253693,0.35225388,98.043,97.947,3.85611124]
[1770173253895,0.35225388,98.043,97.961,3.85611124]
[1770173254088,0.35225388,98.043,97.96,8.3354414]
[1770173254089,0.35225388,98.043,97.963,3.85611124]
[1770173254691,9.1931,98.041,97.972,3.85611124]
[1770173254993,0.51899971,98.024,97.929,3.85611124]
[1770173255789,0.51899971,98.007,97.938,3.85611124]
[1770173256087,0.51899971,97.993,97.921,3.85611124]
[1770173256293,9.1991,97.977,97.921,3.85611124]
[1770173258091,0.51899971,97.993,97.923,3.85611124]
[1770173259189,9.1977,97.992,97.934,3.85611124]
[1770173259796,9.1977,97.992,97.937,3.85611124]
[1770173261699,9.1988,97.981,97.937,3.85611124]
[1770173262601,0.51899971,97.993,97.938,3.85611124]
[1770173263298,1.03900525,97.969,97.899,3.85611124]
[1770173263895,1.03900525,97.969,97.904,3.85611124]
[1770173264100,1.03900525,97.986,97.904,3.85611124]
[1770173264401,1.03900525,97.986,97.906,3.85611124]
[1770173264998,9.1994,97.975,97.907,3.85611124]
[1770173266596,9.1994,97.975,97.91,3.85611124]
[1770173267499,10.26465432,97.975,97.91,3.85611124]
[1770173267705,10.26465432,97.975,97.885,143.2319]
[1770173267706,1.06525432,97.969,97.894,3.85611124]
[1770173268707,1.07476347,97.957,97.894,3.85611124]
[1770173269905,1.07476347,97.957,97.835,143.3047]
[1770173269906,1.07476347,97.948,97.878,3.85611124]
[1770173271000,1.07476347,97.948,97.889,3.52867389]
[1770173271397,1.10363498,97.989,97.889,3.52867389]
[1770173271600,9.1991,97.978,97.915,3.52867389]
[1770173271803,10.30273498,97.978,97.915,3.52867389]
[1770173272000,10.30273498,97.978,97.917,3.52867389]
[1770173272001,1.10363498,97.978,97.917,3.52867389]
[1770173272708,143.0391,98.018,97.919,3.52867389]
[1770173272709,9.1978,97.991,97.919,3.52867389]
[1770173272910,1.38232499,97.996,97.919,3.52867389]
[1770173273313,9.1986,97.982,97.921,3.52867389]
[1770173273506,1.38232499,97.996,97.921,3.52867389]
[1770173273707,1.38232499,97.996,97.924,3.52867389]
[1770173273708,9.1986,97.983,97.924,3.52867389]
[1770173273908,1.38232499,97.982,97.924,3.52867389]
[1770173274305,9.1997,97.971,97.924,3.52867389]
[1770173274615,9.1997,97.971,97.912,9.2052]
[1770173274616,1.35354875,97.971,97.901,3.52867389]
[1770173275006,9.2005,97.963,97.906,9.2057]
[1770173275311,1.35354875,97.971,97.907,3.52867389]
[1770173275808,9.1998,97.97,97.907,3.52867389]
[1770173276607,9.1998,97.97,97.909,12.87410839]
[1770173276815,9.1988,97.981,97.91,3.66860839]
[1770173277719,10.56665194,97.981,97.921,9.2043]
[1770173278016,10.56665194,97.981,97.921,12.87290839]
[1770173279419,10.56665194,97.981,97.921,3.66860839]
[1770173279617,1.37170794,97.964,97.901,3.66860839]
[1770173280911,9.71869135,98.0,97.913,3.66860839]
[1770173281115,1.37274122,98.0,97.915,3.66860839]
[1770173281717,1.37274122,98.0,97.917,3.66860839]
[1770173281718,9.1979,97.991,97.917,3.66860839]
[1770173282518,9.1979,97.991,97.919,3.66860839]
[1770173283717,9.1979,97.991,97.922,3.66860839]
[1770173283918,9.1986,97.983,97.922,3.66860839]
[1770173284513,1.48802308,97.982,97.905,3.66860839]
[1770173285424,1.48802308,97.953,97.905,3.66860839]
[1770173286821,1.48177966,97.933,97.856,3.66860839]
[1770173287613,1.48177966,97.932,97.856,3.66860839]
[1770173288718,1.49603405,97.927,97.859,3.66860839]
[1770173289327,9.2039,97.926,97.861,3.66860839]
[1770173289723,1.49603405,97.925,97.861,3.66860839]
[1770173290224,143.1536,97.939,97.861,3.66860839]
[1770173290225,1.61487331,97.921,97.861,3.66860839]
[1770173291417,1.61487331,97.909,97.821,3.66860839]
[1770173291621,1.61487331,97.898,97.821,3.66860839]
[1770173291929,1.61487331,97.879,97.802,3.66860839]
[1770173292814,1.62314566,97.872,97.802,3.66860839]
[1770173293325,1.62314566,97.889,97.802,3.66860839]
[1770173293624,1.62314566,97.889,97.814,9.2144]
[1770173293821,1.62314566,97.889,97.815,3.66860839]
[1770173294425,1.67629768,97.864,97.797,3.66860839]
[1770173294825,1.67629768,97.859,97.779,3.66860839]
[1770173295626,1.67629768,97.847,97.779,3.66860839]
[1770173295921,1.67629768,97.866,97.784,3.66860839]
[1770173296121,1.67629768,97.884,97.802,3.66860839]
[1770173296327,8.34595013,97.9,97.785,143.3784]
[1770173296328,1.69920665,97.882,97.814,3.66860839]
[1770173296717,1.69920665,97.88,97.814,3.66860839]
[1770173297328,1.69920665,97.877,97.814,3.66860839]
[1770173298726,1.6954327,97.874,97.814,3.66860839]
[1770173300731,9.2091,97.871,97.814,3.66860839]
[1770173300933,1.6802159,97.897,97.816,143.3325]
[1770173301128,1.6802159,97.897,97.818,3.6064082]
[1770173301328,9.2078,97.885,97.818,3.6064082]
[1770173301930,8.34595013,97.9,97.818,3.6064082]
[1770173301931,1.6802159,97.895,97.818,3.6064082]
[1770173302730,1.6802159,97.895,97.82,3.6064082]
[1770173303631,1.6802159,97.895,97.824,3.6064082]
[1770173303937,9.2063,97.901,97.824,3.6064082]
[1770173304736,9.2063,97.901,97.831,3.6064082]
[1770173306730,10.87376772,97.901,97.831,3.6064082]
[1770173308331,10.87376772,97.901,97.834,3.6064082]
[1770173309534,10.87376772,97.901,97.836,3.6064082]
[1770173309935,1.66723528,97.9,97.836,3.6064082]
[1770173310434,8.34595013,97.88,97.8,3.6064082]
[1770173310640,1.73651099,97.879,97.8,3.6064082]
[1770173311141,1.73651099,97.863,97.801,3.6064082]
[1770173311931,143.2445,97.877,97.771,407.76]
[1770173311932,143.2914,97.845,97.771,407.76]
[1770173312145,1.80334612,97.834,97.767,3.6064082]
[1770173313241,1.80334612,97.852,97.778,3.6064082]
[1770173314436,1.80671919,97.84,97.778,3.6064082]
[1770173315841,1.80671919,97.84,97.779,3.6064082]
[1770173316139,1.80671919,97.857,97.779,3.6064082]
[1770173316536,1.80671919,97.857,97.792,3.6064082]
[1770173317139,1.80671919,97.857,97.797,9.216]
[1770173317341,1.80671919,97.857,97.774,3.6064082]
[1770173317645,1.82741358,97.854,97.774,3.6064082]
[1770173317841,9.2116,97.844,97.776,3.6064082]
[1770173318041,11.03901358,97.844,97.776,3.6064082]
[1770173318237,1.80809238,97.843,97.776,3.6064082]
[1770173318641,9.212,97.84,97.776,3.6064082]
[1770173321145,9.2109,97.852,97.78,3.6064082]
[1770173322043,1.84097808,97.859,97.794,3.6064082]
[1770173322442,1.84097808,97.859,97.796,3.6064082]
[1770173323643,9.2105,97.857,97.796,3.6064082]
[1770173323942,1.84050261,97.856,97.781,407.9]
[1770173324148,1.84050261,97.856,97.779,3.6064082]
[1770173324448,9.2119,97.841,97.779,3.6064082]
[1770173324947,1.83885634,97.825,97.763,3.6064082]
[1770173325843,143.3226,97.824,97.737,3.6064082]
[1770173326044,143.3076,97.834,97.737,3.6064082]
[1770173326045,9.2162,97.795,97.737,3.6064082]
[1770173326249,1.83885634,97.807,97.737,3.6064082]
[1770173326749,1.83886003,97.794,97.737,3.6064082]
[1770173327152,9.2177,97.78,97.72,3.6064082]
[1770173327546,11.05656003,97.78,97.72,3.6064082]
[1770173328640,9.2186,97.77,97.72,3.6064082]
[1770173329041,1.82306215,97.774,97.693,3.6064082]
[1770173329443,9.2197,97.759,97.693,3.6064082]
[1770173329850,1.82306215,97.752,97.693,3.6064082]
[1770173330245,9.2217,97.738,97.693,3.6064082]
[1770173330549,1.82306215,97.752,97.693,3.6064082]
[1770173331057,9.2205,97.75,97.693,3.6064082]
[1770173331257,1.82306215,97.752,97.693,3.6064082]
[1770173331655,1.86624727,97.769,97.693,3.6064082]
[1770173332152,1.86624727,97.769,97.673,143.5425]
[1770173332153,1.86624727,97.769,97.695,3.53583761]
[1770173332355,11.08504727,97.769,97.695,3.53583761]
[1770173332554,1.86448217,97.768,97.695,3.53583761]
[1770173333652,9.2198,97.757,97.695,3.53583761]
[1770173333857,1.86448217,97.756,97.695,3.53583761]
[1770173334352,1.86949607,97.754,97.695,3.53583761]
[1770173336261,1.86286902,97.752,97.678,3.8165975]
[1770173336954,1.86286902,97.749,97.678,3.8165975]
[1770173337859,1.86286902,97.749,97.68,3.8165975]
[1770173339160,1.84595152,97.741,97.68,3.8165975]
[1770173340358,11.07424889,97.735,97.68,3.8165975]
[1770173340563,1.85224889,97.734,97.66,3.8165975]
[1770173340860,1.85224889,97.703,97.643,3.8165975]
[1770173341065,1.85224889,97.703,97.626,3.8165975]
[1770173341362,9.2283,97.667,97.608,3.8165975]
[1770173341552,1.85224889,97.666,97.608,3.8165975]
[1770173343666,9.2285,97.665,97.608,3.8165975]
[1770173343865,1.85224889,97.666,97.608,3.8165975]
[1770173344264,9.2285,97.665,97.608,3.8165975]
[1770173344767,1.89826463,97.685,97.608,3.8165975]
[1770173345658,1.89826463,97.684,97.608,3.8165975]
[1770173346270,9.2269,97.683,97.61,3.8165975]
[1770173346663,1.92925561,97.682,97.61,3.8165975]
[1770173346859,1.92925561,97.677,97.61,3.8165975]
[1770173347061,1.92925561,97.671,97.61,3.8165975]
[1770173347363,1.92925561,97.671,97.54,143.7378]
[1770173347364,1.92925561,97.639,97.573,3.8165975]
[1770173347966,1.92925561,97.658,97.576,3.8165975]
[1770173348171,1.92925561,97.658,97.577,3.8165975]
[1770173348369,1.92925561,97.658,97.579,3.8165975]
[1770173348965,1.92925561,97.658,97.589,3.8165975]
[1770173349274,1.94847686,97.672,97.589,3.8165975]
[1770173349668,1.94847686,97.672,97.591,3.8165975]
[1770173349669,9.2281,97.67,97.591,3.8165975]
[1770173349874,1.94847686,97.669,97.591,3.8165975]
[1770173350269,1.94847686,97.669,97.593,3.8165975]
[1770173351169,9.2283,97.668,97.596,3.8165975]
[1770173351567,1.86698111,97.667,97.596,3.8165975]
[1770173351971,1.86698111,97.667,97.598,3.8165975]
[1770173352369,1.86698111,97.667,97.6,9.2346]
[1770173352570,1.86698111,97.667,97.601,3.8165975]
[1770173356375,1.80269367,97.676,97.604,3.8165975]
[1770173356672,1.80269367,97.674,97.604,3.8165975]
[1770173357776,1.80269367,97.674,97.607,3.8165975]
[1770173359270,1.78624748,97.692,97.614,143.629]
[1770173359478,1.78624748,97.692,97.621,3.8165975]
[1770173359674,1.78624748,97.71,97.628,3.8165975]
[1770173360074,1.78624748,97.707,97.628,3.8165975]
[1770173360873,143.5155,97.692,97.628,3.8165975]
[1770173361076,1.36728162,97.689,97.628,3.8165975]
[1770173362776,9.2274,97.677,97.628,3.8165975]
[1770173363082,1.3511568,97.706,97.628,3.8165975]
[1770173363282,1.3511568,97.698,97.633,3.59746841]
[1770173364290,9.2256,97.696,97.633,3.59746841]
[1770173364490,1.34101779,97.695,97.633,3.59746841]
[1770173365285,1.34101779,97.669,97.61,3.59746841]
[1770173365792,1.34101779,97.669,97.612,3.59746841]
[1770173367487,9.2284,97.666,97.612,3.59746841]
[1770173368192,1.34101779,97.669,97.612,3.59746841]
[1770173368193,10.56921779,97.669,97.612,3.59746841]
[1770173369793,143.4961,97.706,97.612,3.59746841]
[1770173369993,1.44056693,97.705,97.621,3.59746841]
[1770173370192,151.8492713,97.73,97.594,143.659]
[1770173370193,1.41949941,97.697,97.623,3.59746841]
[1770173370792,143.5793,97.649,97.55,8.3887713]
[1770173370993,143.593,97.64,97.527,395.72596883]
[1770173371199,3.76623792,97.632,97.53,152.1410713]
[1770173371691,9.2334,97.613,97.53,8.3887713]
[1770173371892,143.6276,97.616,97.53,8.3887713]
[1770173372301,143.6276,97.616,97.531,408.68]
[1770173372499,9.2343,97.604,97.531,417.9211]
[1770173372795,9.2343,97.604,97.532,3.59746841]
[1770173373502,3.76623792,97.64,97.536,3.59746841]
[1770173373799,3.76623792,97.634,97.539,3.59746841]
[1770173374002,9.2343,97.604,97.539,3.59746841]
[1770173374202,13.00053792,97.604,97.539,3.59746841]
[1770173374599,3.76623792,97.594,97.539,3.59746841]
[1770173374806,3.76623792,97.592,97.521,3.59746841]
[1770173375197,9.2361,97.585,97.521,3.59746841]
[1770173375399,3.76623792,97.584,97.521,3.59746841]
[1770173376394,3.76623792,97.603,97.524,3.59746841]
[1770173377201,3.76623792,97.622,97.537,3.59746841]
[1770173378905,3.76623792,97.62,97.544,3.59746841]
[1770173379703,12.99923792,97.618,97.548,3.59746841]
[1770173380400,8.3887713,97.63,97.548,3.59746841]
[1770173380401,3.76623792,97.617,97.548,3.59746841]
[1770173381706,12.86859221,97.613,97.548,3.59746841]
[1770173384098,9.2338,97.609,97.548,3.59746841]
[1770173384299,9.2338,97.609,97.517,3.70334694]
[1770173384300,3.71245855,97.598,97.517,3.70334694]
[1770173385204,3.71245855,97.578,97.499,3.70334694]
[1770173386005,3.71245855,97.57,97.5,3.70334694]
[1770173386207,8.3887713,97.59,97.5,3.70334694]
[1770173386512,3.71245855,97.592,97.5,3.70334694]
[1770173386905,9.2357,97.589,97.513,3.70334694]
[1770173387107,3.71245855,97.611,97.52,3.70334694]
[1770173387502,3.71245855,97.598,97.531,3.70334694]
[1770173388309,3.71245855,97.598,97.534,3.70334694]
[1770173389313,3.71245855,97.595,97.491,3.70334694]
[1770173389607,3.71245855,97.595,97.498,3.70334694]
[1770173389914,3.71245855,97.595,97.516,3.70334694]
[1770173390508,3.71245855,97.595,97.528,3.70334694]
[1770173390816,3.69836125,97.613,97.531,3.68707746]
[1770173391610,9.2337,97.611,97.541,3.68707746]
[1770173391812,3.69836125,97.613,97.541,3.68707746]
[1770173392511,3.69836125,97.613,97.557,9.2386]
[1770173392710,3.69836125,97.613,97.541,3.68707746]
[1770173393716,3.69836125,97.63,97.555,3.68707746]
[1770173394313,3.69836125,97.63,97.565,9.2379]
[1770173394509,3.69836125,97.63,97.566,3.68707746]
[1770173394811,3.69836125,97.627,97.566,3.68707746]
[1770173400316,236.7,97.667,97.55,417.3487713]
[1770173400317,3.49677129,97.668,97.581,3.61512495]
[1770173400514,3.49677129,97.687,97.609,3.61512495]
[1770173400918,3.49677129,97.686,97.622,3.61512495]
[1770173401119,3.49677129,97.686,97.601,3.61512495]
[1770173401621,9.2278,97.672,97.603,3.61512495]
[1770173402220,143.5114,97.695,97.603,3.61512495]
[1770173402221,3.49677129,97.668,97.603,3.61512495]
[1770173403724,9.2285,97.665,97.603,3.61512495]
[1770173404322,3.49677129,97.656,97.592,9.2354]
[1770173404621,3.49677129,97.656,97.585,3.61512495]
[1770173405021,143.6211,97.621,97.539,3.61512495]
[1770173405224,3.49677129,97.617,97.539,3.61512495]
[1770173405421,3.49677129,97.613,97.539,3.61512495]
[1770173408833,9.2337,97.61,97.545,3.61512495]
[1770173409328,3.49677129,97.609,97.523,401.19303155]
[1770173409529,3.49677129,97.583,97.518,3.61512495]
[1770173409928,9.2364,97.582,97.518,3.61512495]
[1770173410720,9.2364,97.582,97.484,408.88]
[1770173410721,9.2353,97.594,97.521,3.61512495]
[1770173411727,9.2353,97.594,97.523,3.61512495]
[1770173412126,3.49677129,97.601,97.525,3.61512495]
[1770173412433,3.49677129,97.601,97.524,143.7614]
[1770173412434,3.49677129,97.601,97.539,3.61512495]
[1770173413733,9.2348,97.598,97.539,3.61512495]
[1770173416632,3.49677129,97.594,97.539,3.61512495]
[1770173417230,3.49677129,97.592,97.524,408.9]
[1770173417531,3.49677129,97.592,97.52,3.61512495]
[1770173418835,3.49677129,97.589,97.52,3.61512495]
[1770173419834,3.49677129,97.586,97.52,3.61512495]
[1770173420436,3.49677129,97.575,97.504,3.61512495]
[1770173421535,9.2372,97.573,97.505,3.82685137]
[1770173421941,13.04588214,97.573,97.505,3.82685137]
[1770173422236,3.80868214,97.573,97.51,3.82685137]
[1770173423239,3.80868214,97.592,97.523,3.82685137]
[1770173423438,3.80868214,97.592,97.525,3.82685137]
[1770173424040,3.80868214,97.592,97.53,9.2412]
[1770173424243,3.80868214,97.592,97.531,3.82685137]
[1770173425644,3.80868214,97.579,97.513,3.82685137]
[1770173426839,9.2368,97.577,97.518,3.82685137]
[1770173429349,143.6048,97.632,97.531,3.82685137]
[1770173429350,3.80868214,97.595,97.531,3.82685137]
[1770173429738,8.39784673,97.62,97.543,9.24]
[1770173429739,3.80868214,97.613,97.543,9.24]
[1770173429939,3.80868214,97.613,97.544,3.82685137]
[1770173430848,9.2347,97.599,97.544,3.82685137]
[1770173434253,3.80868214,97.598,97.544,3.82685137]
[1770173434949,3.80868214,97.619,97.547,3.82685137]
[1770173435154,3.80868214,97.636,97.556,3.82685137]
[1770173435549,3.80868214,97.636,97.564,143.7034]
[1770173435753,3.80868214,97.674,97.588,3.82685137]
[1770173435959,3.80868214,97.674,97.591,3.82685137]
[1770173436655,3.80868214,97.674,97.609,3.82685137]
[1770173437353,3.80868214,97.674,97.614,3.82685137]
[1770173437554,109.88,97.722,97.595,143.6572]
[1770173437555,3.80868214,97.716,97.631,3.82685137]
[1770173437752,3.80868214,97.711,97.631,3.82685137]
[1770173437954,3.80868214,97.694,97.613,3.82685137]
[1770173439659,3.80868214,97.682,97.613,3.82685137]
[1770173440664,3.80868214,97.679,97.602,408.96]
[1770173441158,3.80868214,97.679,97.606,9.234]
[1770173441358,3.80868214,97.679,97.606,13.06085137]
[1770173441860,8.39784673,97.69,97.606,13.06085137]
[1770173441861,3.80868214,97.677,97.606,3.82685137]
[1770173442261,3.80868214,97.669,97.602,408.96]
[1770173442462,3.80868214,97.661,97.588,3.82685137]
[1770173442662,3.80868214,97.661,97.571,3.82685137]
[1770173442858,3.80868214,97.646,97.573,9.2371]
[1770173443357,3.80868214,97.646,97.571,3.82685137]
[1770173444154,3.80868214,97.642,97.571,3.82685137]
[1770173444353,3.80868214,97.66,97.576,3.82685137]
[1770173444754,3.80868214,97.658,97.584,3.82685137]
[1770173445365,3.80868214,97.649,97.565,3.82685137]
[1770173445665,3.80868214,97.646,97.565,3.82685137]
[1770173446258,8.39784673,97.65,97.565,3.82685137]
[1770173446259,3.80868214,97.636,97.566,9.2378]
[1770173446865,3.80868214,97.634,97.566,9.2378]
[1770173447666,8.39784673,97.65,97.565,3.82685137]
[1770173447667,3.80868214,97.632,97.565,3.82685137]
[1770173448066,9.2319,97.629,97.565,3.82685137]
[1770173448369,3.80868214,97.628,97.565,3.82685137]
[1770173448665,3.80868214,97.623,97.565,3.82685137]
[1770173448860,3.80868214,97.623,97.549,408.86]
[1770173449862,3.80868214,97.611,97.549,408.86]
[1770173450266,3.80868214,97.611,97.55,3.82685137]
[1770173451563,3.57826566,97.607,97.55,3.82685137]
[1770173452358,9.2343,97.604,97.55,3.82685137]
[1770173457271,3.57826566,97.607,97.55,3.82685137]
[1770173458571,12.81226566,97.607,97.55,3.82685137]
[1770173459369,13.10047595,97.605,97.55,3.82685137]
[1770173460362,3.86627595,97.605,97.55,3.82685137]
[1770173460866,3.86627595,97.598,97.529,3.60059425]
[1770173461071,3.86627595,97.589,97.512,3.60059425]
[1770173461470,3.86627595,97.568,97.512,3.60059425]
[1770173463974,3.86627595,97.568,97.515,3.60059425]
[1770173464276,3.86627595,97.584,97.515,3.60059425]
[1770173464470,3.86627595,97.609,97.521,3.60059425]
[1770173464671,3.86627595,97.609,97.54,3.60059425]
[1770173464875,3.86627595,97.626,97.541,3.60059425]
[1770173465073,3.86627595,97.626,97.543,3.60059425]
[1770173465266,3.86627595,97.626,97.569,3.60059425]
[1770173465471,3.86627595,97.644,97.569,3.60059425]
[1770173465667,143.6127,97.626,97.549,3.60059425]
[1770173465974,3.86627595,97.619,97.549,3.60059425]
[1770173466673,9.2345,97.602,97.549,3.60059425]
[1770173467471,3.86627595,97.619,97.549,3.60059425]
[1770173467970,3.86627595,97.619,97.533,143.7487]
[1770173467971,3.86627595,97.648,97.555,3.60059425]
[1770173468171,3.86627595,97.648,97.575,3.60059425]
[1770173470170,3.86627595,97.646,97.586,3.60059425]
[1770173471675,9.2309,97.64,97.586,3.60059425]
[1770173473774,3.86627595,97.646,97.586,3.60059425]
[1770173476374,3.86627595,97.646,97.59,3.60059425]
[1770173476681,8.41670063,97.67,97.59,3.60059425]
[1770173476878,8.41670063,97.67,97.586,143.6709]
[1770173476879,3.86627595,97.709,97.632,3.60059425]
[1770173477686,9.2258,97.694,97.632,3.60059425]
[1770173478479,9.2245,97.707,97.633,3.60059425]
[1770173479281,3.86627595,97.706,97.633,3.60059425]
[1770173479686,3.86627595,97.706,97.646,3.60059425]
[1770173481385,143.4115,97.763,97.646,3.60059425]
[1770173481386,3.80457291,97.723,97.659,3.82022271]
[1770173481980,3.80457291,97.709,97.641,3.82022271]
[1770173482380,143.4841,97.714,97.625,3.82022271]
[1770173482381,9.2266,97.685,97.625,3.82022271]
[1770173482686,3.80457291,97.703,97.625,3.82022271]
[1770173483288,3.80457291,97.703,97.628,3.82022271]
[1770173483787,3.80457291,97.703,97.631,3.82022271]
[1770173484887,3.80457291,97.703,97.643,3.82022271]
[1770173486689,9.2253,97.699,97.643,3.82022271]
[1770173487390,3.80457291,97.703,97.643,3.82022271]
[1770173487893,9.225,97.702,97.643,3.82022271]
[1770173489190,3.80457291,97.715,97.643,3.82022271]
[1770173489389,8.41670063,97.72,97.643,3.82022271]
[1770173489390,3.80457291,97.713,97.643,3.82022271]
[1770173489799,9.2253,97.699,97.643,3.82022271]
[1770173490000,3.80457291,97.713,97.643,3.82022271]
[1770173490693,9.2253,97.7,97.643,3.82022271]
[1770173490898,3.80457291,97.713,97.643,3.82022271]
[1770173491693,3.80457291,97.709,97.643,3.82022271]
[1770173492703,9.2246,97.707,97.645,3.82022271]
[1770173492902,13.02917291,97.707,97.645,3.82022271]
[1770173493702,13.02937291,97.705,97.645,3.82022271]
[1770173494099,3.80457291,97.705,97.647,3.82022271]
[1770173494400,3.80457291,97.705,97.621,143.6194]
[1770173494401,3.80457291,97.705,97.651,3.82022271]
[1770173496300,13.03017291,97.696,97.632,408.64]
[1770173496504,3.80457291,97.659,97.603,3.82022271]
[1770173496707,3.35624444,97.63,97.57,3.82022271]
[1770173496906,3.80457291,97.639,97.57,3.82022271]
[1770173496907,3.35624444,97.62,97.57,3.82022271]
[1770173497304,3.35624444,97.63,97.574,3.82022271]
[1770173498309,3.80457291,97.629,97.558,3.82022271]
[1770173498809,3.80457291,97.629,97.575,13.05722271]
[1770173501412,3.80457291,97.629,97.575,3.82022271]
[1770173501810,3.80457291,97.623,97.556,3.82022271]
[1770173502110,143.5996,97.635,97.556,3.82022271]
[1770173502111,3.80457291,97.619,97.556,3.82022271]
[1770173502405,3.80457291,97.609,97.537,3.82022271]
[1770173502801,3.80457291,97.607,97.537,3.82022271]
[1770173503812,3.80457291,97.603,97.537,3.82022271]
[1770173505912,13.03927291,97.6,97.537,3.82022271]
[1770173506913,3.80457291,97.597,97.537,3.82022271]
[1770173509810,13.04037291,97.588,97.537,3.82022271]
[1770173510011,143.6437,97.605,97.499,3.82022271]
[1770173510012,143.687,97.576,97.499,3.82022271]
[1770173510210,3.80457291,97.575,97.499,3.82022271]
[1770173511210,9.2376,97.569,97.499,3.82022271]
[1770173511714,3.80457291,97.575,97.499,3.82022271]
[1770173512510,3.80457291,97.575,97.5,3.74032411]
[1770173514512,9.239,97.555,97.5,3.74032411]
[1770173516610,13.04472109,97.555,97.5,3.74032411]
[1770173516915,9.239,97.555,97.5,3.74032411]
[1770173517418,9.2379,97.566,97.501,3.72268495]
[1770173517911,3.80572109,97.56,97.501,3.72268495]
[1770173519014,3.3663508,97.57,97.503,3.72268495]
[1770173519215,3.3663508,97.57,97.511,3.72268495]
[1770173520017,9.2377,97.568,97.511,3.72268495]
[1770173520218,3.80572109,97.567,97.511,3.72268495]
[1770173520416,3.3663508,97.56,97.511,3.72268495]
[1770173522421,3.80572109,97.567,97.511,3.72268495]
[1770173522619,3.36622962,97.58,97.521,3.72268495]
[1770173522825,3.80572109,97.559,97.504,3.72268495]
[1770173524123,3.36622962,97.55,97.504,3.72268495]
[1770173524518,3.36622962,97.55,97.433,143.8963]
[1770173524519,3.36622962,97.51,97.467,3.72268495]
[1770173524725,3.80572109,97.52,97.451,3.72268495]
[1770173525026,7.17195071,97.52,97.461,3.72268495]
[1770173525427,7.17195071,97.52,97.464,3.72268495]
[1770173525827,143.6664,97.59,97.492,9.2448]
[1770173525828,3.36622962,97.55,97.492,9.2448]
[1770173526223,3.36622962,97.51,97.457,3.72268495]
[1770173526424,3.36622962,97.5,97.457,3.72268495]
[1770173526624,3.36622962,97.51,97.457,3.72268495]
[1770173527025,3.36622962,97.51,97.458,9.2481]
[1770173527221,3.80572109,97.514,97.458,9.2481]
[1770173527928,143.7331,97.544,97.437,143.8909]
[1770173527929,3.36622962,97.53,97.465,3.72268495]
[1770173528125,3.80572109,97.534,97.48,3.36622962]
[1770173528322,3.36622962,97.51,97.461,3.72268495]
[1770173528520,3.80572109,97.529,97.47,3.36622962]
[1770173528926,3.80572109,97.529,97.471,3.72268495]
[1770173529730,3.36622962,97.54,97.481,3.72268495]
[1770173529929,3.80572109,97.546,97.481,3.72268495]
[1770173530827,3.36622962,97.54,97.483,12.96838495]
[1770173531529,3.36622962,97.54,97.49,3.36622962]
[1770173531927,3.36622962,97.54,97.484,3.72268495]
[1770173532131,3.36622962,97.56,97.501,3.72268495]
[1770173532831,3.80572109,97.579,97.52,3.36622962]
[1770173533126,3.80572109,97.579,97.521,3.72268495]
[1770173533330,3.80572109,97.579,97.52,3.36622962]
[1770173533331,3.80572109,97.597,97.531,3.72268495]
[1770173534029,13.04062109,97.597,97.54,3.36622962]
[1770173534233,3.80572109,97.596,97.531,3.72268495]
[1770173534534,3.80572109,97.608,97.533,3.72268495]
[1770173534730,3.80572109,97.608,97.535,3.72268495]
[1770173535529,3.80572109,97.632,97.549,3.72268495]
[1770173535733,3.80572109,97.632,97.551,3.72268495]
[1770173536034,3.80572109,97.632,97.563,3.72268495]
[1770173536726,9.2319,97.629,97.563,3.72268495]
[1770173537030,3.80572109,97.628,97.563,3.72268495]
[1770173537431,3.80572109,97.628,97.565,3.72268495]
[1770173538230,3.80572109,97.616,97.548,3.72268495]
[1770173540036,3.80572109,97.589,97.521,3.72268495]
[1770173540235,3.80572109,97.589,97.48,8.41137918]
[1770173540236,143.6743,97.584,97.504,3.72268495]
[1770173540438,9.2382,97.563,97.504,3.72268495]
[1770173540638,3.70443462,97.562,97.504,3.72268495]
[1770173541038,8.41137918,97.57,97.479,370.08]
[1770173541039,3.70443462,97.56,97.485,3.64707365]
[1770173541736,3.70443462,97.544,97.485,3.64707365]
[1770173541936,3.70443462,97.544,97.467,3.64707365]
[1770173542238,3.70443462,97.541,97.469,3.64707365]
[1770173542441,3.70443462,97.541,97.469,412.72707365]